Cogmind - Beta 16 @@@ ROGUE MODE // 2025.11.03 @ 19:52:56 Player: L_ Result: Destroyed by S-10 Pest with Light Assault Rifle Performance ------------- Evolutions (1) 500 Regions Visited (2) 400 Robots Destroyed (11) 55 Value Destroyed (323) 323 Prototype IDs (0) 0 Alien Tech Used (0) 0 Bonus (0) 0 TOTAL SCORE: 1278 Bonus ------- None Cogmind --------- Core Integrity 0/400 Matter 172/300 Energy 16/100 System Corruption 0% Temperature Cool (0) Movement Core (50) Location -9/Materials Parts ------- > --- POWER (2) -------- (None) > --- PROPULSION (2) --- (None) > --- UTILITY (3) ------ (None) > --- WEAPON (2) ------- (None) > --- INVENTORY (5) ---- High-capacity Storage Unit Assault Cannon Assault Cannon Assault Cannon Datajack Peak State ------------ > --- POWER ------------ Ion Engine > --- PROPULSION ------- Aluminum Leg Aluminum Leg > --- UTILITY ---------- ECM Suite Improved Light Armor Plating Improved Light Armor Plating > --- WEAPON ----------- Assault Cannon Assault Cannon > --- INVENTORY -------- High-capacity Storage Unit Assault Cannon Assault Cannon Datajack [Rating: 16] Favorites ----------- Power Ion Engine Engine Ion Engine Propulsion Aluminum Leg Leg Aluminum Leg Utility Improved Light Armor Plating Device ECM Suite Storage High-capacity Storage Unit Protection Improved Light Armor Plating Weapon Assault Cannon Ballistic Gun Light Assault Rifle Ballistic Cannon Assault Cannon Build | -11 -10 -9 ------- Run | Yrd Mat Mat Slots Evolved 2 | . . 2 Power 1 | . . 1 Propulsion . | . . . Utility 1 | . . 1 Weapon . | . . . Parts Attached 15 | 4 4 7 Power 2 | 1 1 . Engine 2 | 1 1 . Core . | . . . Reactor . | . . . Propulsion 4 | 2 . 2 Treads . | . . . Leg 4 | 2 . 2 Wheel . | . . . Hover . | . . . Flight . | . . . Utility 5 | . 2 3 Device 1 | . . 1 Storage 2 | . 2 . Processor . | . . . Hackware . | . . . Protection 2 | . . 2 Artifact . | . . . Weapon 4 | 1 1 2 Energy Gun . | . . . Energy Cannon . | . . . Ballistic Gun 2 | 1 1 . Ballistic Cannon 2 | . . 2 Launcher . | . . . Special Weapon . | . . . Impact Weapon . | . . . Slashing Weapon . | . . . Piercing Weapon . | . . . Special Melee Weapon . | . . . Unidentified Prototypes . | . . . Parts Lost 11 | . 3 8 Power 2 | . 1 1 Propulsion 4 | . 1 3 Utility 3 | . . 3 Weapon 2 | . 1 1 Highest Loss Streak 4 | . 2 4 To Critical Strikes . | . . . Average Backups 4 | 1 5 4 Power . | . . . Propulsion . | . 1 . Utility 1 | . 2 1 Weapon 2 | 1 1 2 Tool/Special . | . . . Unused Backups 6 | . 1 5 Power . | . . . Propulsion . | . . . Utility 2 | . 1 1 Weapon 3 | . . 3 Tool/Special 1 | . . 1 Average Slot Usage (%) 61 | . 63 60 Engine 10 | . 13 8 Leg 18 | . 25 14 Device 5 | . . 8 Storage 3 | . 9 . Protection 12 | . . 18 Ballistic Gun 5 | . 14 . Ballistic Cannon 6 | . . 9 Peak Build Rating 16 | 4 5 16 Average Rating 8 | 3 4 11 On Entrance 2 | . 4 3 Avg Prop Armor Cover (%) . | . . . Naked Turns 3 | . . 3 Heaviest Build 45 | 5 45 18 Greatest Support 20 | 20 20 20 Greatest Overweight (x) 4 | . 4 1 Average Overweight (x) . | . . . Largest Inventory Capacity 20 | 5 20 5 Average Capacity 7 | 5 13 5 Most Carried 7 | 5 7 5 Average Carried 4 | 1 5 4 Final Capacity 5 | 5 5 5 Final Carried 5 | 5 4 5 Class Distribution -------------------- 100% | Mutant Dominant Class ---------------- Mutant | -10/Materials Mutant | -9/Materials Resources | -11 -10 -9 ----------- Run | Yrd Mat Mat Matter Collected 475 | 249 99 127 Remotely . | . . . Salvage Created 283 | 37 99 147 Parts 18 | 4 3 11 Haulers Intercepted . | . . . Recyclers Shooed . | . . . Parts Field Recycled . | . . . Retrieved Matter . | . . . Parts Self-Destructed . | . . . Prevented . | . . . Parts Restored . | . . . Kills | -11 -10 -9 ------- Run | Yrd Mat Mat Combat Hostiles Destroyed 11 | 1 2 8 Guns 3 | 1 2 . Cannons 8 | . . 8 Classes Destroyed 3 | 1 . 2 Swarmer 4 | . . 4 Grunt 5 | 1 2 2 Sentry 2 | . . 2 Best Kill Streak 4 | 1 2 4 Combat Bots Only 4 | 1 2 4 Max Kills in Single Turn 1 | 1 1 1 Gunslinging . | . . . Exploded . | . . . Melee . | . . . Uniques/NPCs Destroyed . | . . . Combat | -11 -10 -9 -------- Run | Yrd Mat Mat Hostile Shots Fired 223 | 3 54 166 Missed 66 | . 19 47 Hits 157 | 3 35 119 Projectile 157 | 3 35 119 Critical Strikes 4 | . . 4 Damage Taken 1676 | 35 470 1171 Core 496 | . 95 401 Absorbed by Shields . | . . . Core Remaining (%) 81 | 100 62 . Volleys Fired 59 | 3 13 43 Largest 1 | 1 1 1 Hottest 37 | 20 20 37 Shots Fired 59 | 3 13 43 Gun 16 | 3 13 . Cannon 43 | . . 43 Launcher . | . . . Special . | . . . Kinetic 59 | 3 13 43 Thermal . | . . . Explosive . | . . . Electromagnetic . | . . . Robot Hit Streak 6 | 2 6 4 Robot Miss Streak 3 | 1 1 3 Penetration Max . | . . . Secondary Targets . | . . . Shots Hit Robots 36 | 2 10 24 Core Hits 15 | 2 5 8 Critical Kills . | . . . Critical Parts Destroyed . | . . . Critical Strikes . | . . . Melee Attacks . | . . . Impact . | . . . Slashing . | . . . Piercing . | . . . Sneak Attacks . | . . . Combat Hostiles . | . . . Follow-up Attacks . | . . . Damage Inflicted 675 | 22 87 566 Guns 109 | 22 87 . Cannons 566 | . . 566 Explosions . | . . . Melee . | . . . Ramming . | . . . Kinetic 675 | 22 87 566 Thermal . | . . . Explosive . | . . . Electromagnetic . | . . . Impact . | . . . Slashing . | . . . Piercing . | . . . Highest Corruption . | . . . Average Corruption . | . . . Corruption Purged . | . . . Corruption Blocked . | . . . Overload Shots . | . . . Overflow Damage . | . . . Projectiles . | . . . Explosions . | . . . Melee . | . . . Knockbacks 2 | . . 2 Impact . | . . . Kinetic 2 | . . 2 Secondary . | . . . Self-Inflicted Damage . | . . . Shots . | . . . Rammed . | . . . Targets Rammed . | . . . Kicked . | . . . Crushed . | . . . Highest Temperature 50 | . 9 50 Average Temperature 21 | . 9 22 Received Heat Transfer 513 | 18 270 225 Siege Activations . | . . . Martial Activations . | . . . Shielding Activations . | . . . Robots Disrupted . | . . . Combat Hostiles . | . . . Robots Corrupted . | . . . Combat Hostiles . | . . . Parts Fried . | . . . Impact Corruptions . | . . . Robots Melted . | . . . Combat Hostiles . | . . . Parts Melted . | . . . Heat Transferred . | . . . Parts Sabotaged . | . . . Parts Stolen . | . . . Parts Stripped . | . . . Power Chain Reactions . | . . . Alert | -11 -10 -9 ------- Run | Yrd Mat Mat Maximum Alert Level . | . . . Low Security (%) 100 | 100 100 100 Level 1 . | . . . Level 2 . | . . . Level 3 . | . . . Level 4 . | . . . Level 5 . | . . . High Security . | . . . Max Security . | . . . Peak Influence 100 | 20 30 100 Initial 6 | . 6 . Average 19 | 4 3 31 Influence Increases 294 | 20 50 224 Destroy 0b10 Robot/C 220 | 20 40 160 Destroy Leader 50 | . 10 40 Disable Machine 15 | . . 15 Destroy Structure 9 | . . 9 Influence Decreases 294 | 10 60 224 Entered New Map 4 | . 4 . Time Decay 249 | 10 46 193 Lost Part 41 | . 10 31 Squads Dispatched 2 | . . 2 Investigation . | . . . Extermination . | . . . Reinforcement 2 | . . 2 Assault . | . . . Garrison . | . . . Intercept . | . . . Searches Triggered . | . . . Construction Impeded . | . . . Haulers Reinforced . | . . . Active Scanning Responses . | . . . Cargo Convoy Interrupts . | . . . Stealth | -11 -10 -9 --------- Run | Yrd Mat Mat Distress Signals 4 | . . 4 Communications Jammed . | . . . Distress Signals . | . . . Times Spotted 44 | 1 9 34 Peak Tracking Total 10 | 1 4 10 Tactical Retreats 6 | . . 6 ECM-based Alert Blocks 13 | . . 13 Traps | -11 -10 -9 ------- Run | Yrd Mat Mat Traps Triggered . | . . . Indirectly . | . . . Trap Hack Attempts . | . . . Triggered . | . . . Disarmed . | . . . Reprogrammed . | . . . Reused . | . . . Traps Extracted . | . . . Installed . | . . . Triggered . | . . . Machines | -11 -10 -9 ---------- Run | Yrd Mat Mat Machines Disabled 1 | . . 1 Max in Single Turn 1 | . . 1 Machines Repaired . | . . . Machines Dismantled . | . . . Machines Sabotaged . | . . . Overloaded Fab Kills . | . . . Hacking | -11 -10 -9 --------- Run | Yrd Mat Mat Machines Accessed 1 | . . 1 Terminals 1 | . . 1 Fabricators . | . . . Repair Stations . | . . . Recycling Units . | . . . Scanalyzers . | . . . Garrison Access . | . . . Total Hacks 1 | . . 1 Successful 1 | . . 1 Failed . | . . . Catastrophic . | . . . Database Lockouts . | . . . Manual . | . . . Terminals 1 | . . 1 Fabricators . | . . . Repair Stations . | . . . Recycling Units . | . . . Scanalyzers . | . . . Garrison Access . | . . . Terminal Hacks 1 | . . 1 Emergency Access Points 1 | . . 1 Fabricator Hacks . | . . . Repair Station Hacks . | . . . Recycling Unit Hacks . | . . . Scanalyzer . | . . . Garrison Access Hacks . | . . . Unauthorized Hacks . | . . . Terminals . | . . . Fabricators . | . . . Repair Stations . | . . . Recycling Units . | . . . Scanalyzers . | . . . Garrison Access . | . . . Data Cores Recovered . | . . . Used . | . . . Hacking Detections . | . . . Full Trace Events . | . . . Feedback Events . | . . . Feedback Blocked . | . . . Robot Schematics Acquired . | . . . Robots Built . | . . . Authchips . | . . . Time . | . . . Total Robot Build Rating . | . . . Part Schematics Acquired . | . . . Parts Built . | . . . Authchips . | . . . Time . | . . . Total Part Build Rating . | . . . Part Studies Acquired . | . . . Parts Repaired . | . . . Time . | . . . Parts Recycled . | . . . Recycled Matter . | . . . Retrieved Matter . | . . . Retrieved Components . | . . . Parts Scanalyzed . | . . . Part Schematics Acquired . | . . . Parts Damaged . | . . . Bothacking | -11 -10 -9 ------------ Run | Yrd Mat Mat Used RIF Installer . | . . . Robots Hacked . | . . . Non-combat . | . . . Combat . | . . . Robot Hacks Applied . | . . . Relay Couplers Released . | . . . Fabnet Peak Effective % . | . . . Robots Rewired . | . . . Allies Hacked . | . . . Hacks Repelled . | . . . Allies | -11 -10 -9 -------- Run | Yrd Mat Mat Total Allies . | . . . Largest Group . | . . . Highest-Rated Group . | . . . Highest-Rated Ally . | . . . Total Orders . | . . . Ally Attacks . | . . . Total Damage . | . . . Kills . | . . . Allies Corrupted . | . . . Allies Melted . | . . . Intel | -11 -10 -9 ------- Run | Yrd Mat Mat Active Infowar (turns) 486 | . . 486 ECM 486 | . . 486 Robot Analysis Total . | . . . Derelict Logs Recovered . | . . . Drone Launches . | . . . Drone Recoveries . | . . . Exploration | -11 -10 -9 ------------- Run | Yrd Mat Mat Turns Passed 1049 | 102 329 618 Spaces Moved 568 | 82 173 313 Core 21 | 21 . . Treads . | . . . Legs 547 | 61 173 313 Wheels . | . . . Hover . | . . . Flight . | . . . Fastest Speed 50 | 50 120 120 Average Speed 147 | 102 169 146 Slowest Speed 400 | 120 400 190 Overloaded Moves . | . . . Propulsion Burnouts . | . . . Robots Hopped . | . . . Potential Cave-ins . | . . . Cave-ins Triggered . | . . . Exploration Rate (%) 24 | 6 36 32 Regions Visited 2 Branch Regions . Pre-discovered Areas . | . . . Known Exits Taken . | . . . Unknown Exits Taken 2 | 1 1 . Scrap Searched . | . . . Spaces Dug . | . . . Terrain Destroyed 8 | . . 8 Melee . | . . . Projectile 8 | . . 8 AOE . | . . . Terrain Rammed . | . . . Walls Destroyed . | . . . Machines Disabled . | . . . Actions | -11 -10 -9 --------- Run | Yrd Mat Mat Total 726 | 97 199 430 Wait 54 | . 2 52 Move 566 | 81 172 313 Hop . | . . . Pick Up 23 | 9 4 10 Fast Attach . | . . . Attach 13 | 4 3 6 Detach 2 | . 1 1 Swap 2 | . 1 1 Drop 7 | . 3 4 Fire 59 | 3 13 43 Melee . | . . . Ram . | . . . Kick . | . . . Crush . | . . . Escape Stasis . | . . . Rewire . | . . . Trap . | . . . Miscellaneous . | . . . Route ------- -11/Scrapyard -10/Materials (discovered 2 exits: *Mat / [*Min]) -9/Materials History --------- Turn | Location | Event 2 | -11/Scrapyard | Met Revision 17 72 | -11/Scrapyard | Discovered new exit (range 8) 103 | -11/Scrapyard | Entered Materials 306 | -10/Materials | Build established: Mutant 319 | -10/Materials | Discovered new exit (range 15) 412 | -10/Materials | Discovered new exit (range 16) 432 | -10/Materials | Entered another Materials area 432 | -9/Materials | Evolved 2 slots: Power x1, Utility x1 1026 | -9/Materials | Core integrity fell below 50% 1041 | -9/Materials | Core integrity fell below 20% 1047 | -9/Materials | Lost 4 parts (1n2u1w) 1050 | -9/Materials | Destroyed by S-10 Pest with Light Assault Rifle Last Messages --------------- K-01 Serf cleans the Fusion Modulator. ALERT: Hostiles spotted, dispatching reinforcements to Terminal M004. K-01 Serf cleans the Fusion Modulator. C-30 ARC bursts open, deploying its payload. S-10 Pest unfolds itself. W-16 Scout sends out distress signal. Assault Cannon destroyed. Critical hit (Destroy). Imp. Light Armor Plating destroyed. Aluminum Leg destroyed. W-16 Scout sends out distress signal. Imp. Light Armor Plating destroyed. S-10 Pest destroyed. Acquired 10 matter. K-01 Serf collects debris. R-06 Scavenger collects Lgt. Assault Rifle. K-01 Serf collects debris. R-06 Scavenger collects Lgt. Ion Engine. ECM Suite destroyed. Map ----- +----------------------------------------------------+ | ???????????????????????????????????????????????? | | +??????????????????????????????????????????????? | | #??????????????????????????????????????????????? | | #??????????????????????????????????????????????? | | #??????????????????????????????????????????????? | | #??????????????????????????????????????????????? | | #??????????????????????????????????????????????? | | #??????????????????????????????????????????????? | | ##?????????????????????????????????????????????? | | ??????????????????????????????????????????????? | | #??????????????????????????????????????????????? | | #????????????????????? ????????????????????????? | | #????????##??????????? ????????????????????????? | | #?????? #??????????? ????????????????????????? | | #???? #???????????l????????????????????????? | | #?? #??????????? ""??????????????????????? | | # #???????????g""??????????????????????? | | + """ ""?????????????? ""??????????????????????? | | # """ ""?????????????? ""??????????????????????? | | ###??"" "???# ?????????g ??????????????????????? | | ??????? ???# ???????#/#??????????????????????? | | ????????????# ???????#s#??????????????????????? | | ????????????# % ???????# #??????????????????????? | | ?????????????# ???????# #??????????????????????? | | ?????????????# ######?# #??????????????????????? | | ?????????????# #?#@#??????????????????????? | | ?????????????# ##s/####???????????????????? | | ?????????????# #uT #???????????????????? | | ????###T###### #urk #???????????????????? | | ???? #u """#???????????????????? | | ???# + """#???????????????????? | | ???+ ^ # """#???????????????????? | | ???# """ """ """ # #???????????????????? | | ???# """ """ """ ########???????????????????? | | ???# """ """ """ #??????????????????????????? | | ???# ^ #??????????????????????????? | | ?### ^ #??????????????????????????? | | ####^^ """ """ ##?????????????????????????? | | % """ """ ##+###????????????????????? | | % "Y" """ """ ! #????????????????????? | | """ ??????????????????? | | ??????????????????? | | ??????????????????? | | #############"T"####+#########???????????????????? | | ????????????#"""#??? ???????????????????????????? | | ????????????#####???? "??????????????????????????? | | ?????????????????????????????????????????????????? | | ?????????????????????????????????????????????????? | | ?????????????????????????????????????????????????? | | ?????????????????????????????????????????????????? | +----------------------------------------------------+ Best States ------------- Heat Dissipation 28 Energy Generation 10 Energy Capacity 250 Matter Stores 300 Matter Capacity 300 Sight Range 16 Terrain Scan Density 10 ECM Strength 1 Armor Coverage 300 Evasion (%) 55 Item Schematics ----------------- None Robot Schematics ------------------ None Fabricated ------------ Nothing Repaired ---------- Nothing Studied --------- None Alien Tech Used ----------------- None Achievements -------------- None Challenges ------------ None Game ------ Seed PointyDamperAutohacker Manual? 0 Play Time 00:13:47 Cumulative 5.3 hours Start 2025.11.03 @ 19:41:38 End 2025.11.03 @ 19:52:56 Sessions 1 Manual Loads 0 Difficulty Rogue Special Mode None Game No. 12 Rogue 12 Adventurer 0 Explorer 0 Win Type - Total 0 Types 0/0/0/0/0/0/0/0/0/0 Lore% 9 Gallery% 8 Achievement% 5 Wizard Run 0 Options --------- Layout 1 ASCII 0 Keyboard 0 Movement Arrows Keybinds 0 Fullscreen 2 Font 24/Smallcaps Map View 50x35 Zoom Use 0% Tactical HUD 0 Map Filters NONE Filters NONE Steam 1 RUN: f2efc2ad-c14a-4e85-9f96-104ca960deb8